[Event "Titled Tuesday Blitz May 23 Early 2023"]
[White "Silva Rosas, Natalia"]
[Black "Saim, Mohamed Ilias"]
[WhiteFideId "3000575"]
[BlackFideId "7900465"]
[WhiteElo "1651"]
[BlackElo "2063"]
[Result "0-1"]
[Round "11"]
[TimeControl "180+2"]
[Date "2023.05.23"]
[WhiteClock "0:00:00"]
[BlackClock "0:00:30"]

1. e4 {[%clk 0:02:59]}  c6 {[%clk 0:02:58]} 2. d3 {[%clk 0:02:58]}  d5 {[%clk 0:02:59]} 3. Nd2 {[%clk 0:02:58]}  dxe4 {[%clk 0:02:56]} 4. dxe4 {[%clk 0:02:58]}  Nf6 {[%clk 0:02:55]} 5. Ngf3 {[%clk 0:02:59]}  Bg4 {[%clk 0:02:54]} 6. h3 {[%clk 0:02:57]}  Bh5 {[%clk 0:02:54]} 7. g3 {[%clk 0:02:57]}  Nbd7 {[%clk 0:02:52]} 8. Bg2 {[%clk 0:02:53]}  e5 {[%clk 0:02:52]} 9. O-O {[%clk 0:02:51]}  Bc5 {[%clk 0:02:50]} 10. Nb3 {[%clk 0:02:36]}  Nxe4 {[%clk 0:02:37]} 11. Nxc5 {[%clk 0:02:32]}  Nexc5 {[%clk 0:02:31]} 12. g4 {[%clk 0:02:30]}  Bg6 {[%clk 0:02:31]} 13. Bg5 {[%clk 0:02:26]}  f6 {[%clk 0:02:30]} 14. Be3 {[%clk 0:02:25]}  O-O {[%clk 0:02:27]} 15. Nh4 {[%clk 0:02:20]}  Be4 {[%clk 0:02:19]} 16. f3 {[%clk 0:02:17]}  Bd5 {[%clk 0:02:17]} 17. Nf5 {[%clk 0:02:05]}  Be6 {[%clk 0:02:05]} 18. Nd6 {[%clk 0:01:25]}  Qc7 {[%clk 0:02:02]} 19. b4 {[%clk 0:01:15]}  Na4 {[%clk 0:01:53]} 20. Ne4 {[%clk 0:01:13]}  Rad8 {[%clk 0:01:45]} 21. Qe1 {[%clk 0:01:13]}  Nab6 {[%clk 0:01:39]} 22. Qh4 {[%clk 0:01:07]}  Nd5 {[%clk 0:01:33]} 23. Bd2 {[%clk 0:00:51]}  Rfe8 {[%clk 0:01:27]} 24. c4 {[%clk 0:00:49]}  Ne7 {[%clk 0:01:21]} 25. c5 {[%clk 0:00:46]}  Ng6 {[%clk 0:01:09]} 26. Qg3 {[%clk 0:00:41]}  Ndf8 {[%clk 0:01:09]} 27. Bc3 {[%clk 0:00:32]}  Bc4 {[%clk 0:01:01]} 28. Rfd1 {[%clk 0:00:29]}  Ne6 {[%clk 0:01:00]} 29. Nd6 {[%clk 0:00:28]}  Bd5 {[%clk 0:00:52]} 30. Nxe8 {[%clk 0:00:24]}  Rxe8 {[%clk 0:00:53]} 31. h4 {[%clk 0:00:19]}  Ngf4 {[%clk 0:00:46]} 32. Kh2 {[%clk 0:00:16]}  Ne2 {[%clk 0:00:43]} 33. Qe1 {[%clk 0:00:12]}  N6f4 {[%clk 0:00:40]} 34. g5 {[%clk 0:00:09]}  Qc8 {[%clk 0:00:33]} 35. gxf6 {[%clk 0:00:08]}  Bxf3 {[%clk 0:00:31]} 36. f7+ {[%clk 0:00:00]}  Kxf7 {[%clk 0:00:30]} 0-1


[Site "https://www.chess.com"]

[Event "Titled Tuesday Blitz May 23 Early 2023"]
[White "Chyngyz, Sultai"]
[Black "Sanchez, Robert"]
[WhiteFideId "13803158"]
[BlackFideId "2034360"]
[WhiteElo "1408"]
[BlackElo "1827"]
[Result "1-0"]
[Round "11"]
[TimeControl "180+2"]
[Date "2023.05.23"]
[WhiteClock "0:00:10"]
[BlackClock "0:00:06"]

1. e4 {[%clk 0:02:53]}  e6 {[%clk 0:02:58]} 2. d4 {[%clk 0:02:52]}  d5 {[%clk 0:02:58]} 3. e5 {[%clk 0:02:52]}  c5 {[%clk 0:02:56]} 4. c3 {[%clk 0:02:53]}  Nc6 {[%clk 0:02:57]} 5. Nf3 {[%clk 0:02:53]}  Bd7 {[%clk 0:02:57]} 6. Be2 {[%clk 0:02:53]}  Qb6 {[%clk 0:02:56]} 7. O-O {[%clk 0:02:53]}  Nh6 {[%clk 0:02:54]} 8. b3 {[%clk 0:02:49]}  cxd4 {[%clk 0:02:53]} 9. cxd4 {[%clk 0:02:48]}  Nf5 {[%clk 0:02:53]} 10. Bb2 {[%clk 0:02:48]}  a5 {[%clk 0:02:52]} 11. g4 {[%clk 0:02:49]}  Nh6 {[%clk 0:02:52]} 12. h3 {[%clk 0:02:49]}  a4 {[%clk 0:02:51]} 13. Nc3 {[%clk 0:02:47]}  a3 {[%clk 0:02:51]} 14. Bc1 {[%clk 0:02:47]}  Qa5 {[%clk 0:02:49]} 15. Bd2 {[%clk 0:02:47]}  Bb4 {[%clk 0:02:48]} 16. Nb5 {[%clk 0:02:45]}  O-O {[%clk 0:02:45]} 17. Bxb4 {[%clk 0:02:45]}  Qxb4 {[%clk 0:02:43]} 18. Nd6 {[%clk 0:02:46]}  f6 {[%clk 0:02:29]} 19. g5 {[%clk 0:02:29]}  fxe5 {[%clk 0:02:26]} 20. dxe5 {[%clk 0:02:24]}  Nf5 {[%clk 0:02:24]} 21. Nxf5 {[%clk 0:02:19]}  Rxf5 {[%clk 0:02:24]} 22. Bd3 {[%clk 0:02:18]}  Rf4 {[%clk 0:02:16]} 23. Qe2 {[%clk 0:01:59]}  Raf8 {[%clk 0:02:15]} 24. Nh2 {[%clk 0:01:58]}  Qe7 {[%clk 0:02:02]} 25. g6 {[%clk 0:01:28]}  hxg6 {[%clk 0:01:37]} 26. Kh1 {[%clk 0:01:25]}  Qh4 {[%clk 0:01:30]} 27. f3 {[%clk 0:01:11]}  Qxh3 {[%clk 0:01:25]} 28. Bxg6 {[%clk 0:01:10]}  Nd4 {[%clk 0:01:21]} 29. Qg2 {[%clk 0:01:03]}  Qh6 {[%clk 0:01:17]} 30. Kg1 {[%clk 0:00:54]}  Bb5 {[%clk 0:01:07]} 31. Rf2 {[%clk 0:00:50]}  Rh4 {[%clk 0:01:00]} 32. Kh1 {[%clk 0:00:25]}  Nf5 {[%clk 0:00:43]} 33. Rg1 {[%clk 0:00:20]}  Be8 {[%clk 0:00:38]} 34. Bxe8 {[%clk 0:00:19]}  Rxe8 {[%clk 0:00:37]} 35. Re1 {[%clk 0:00:15]}  Rc8 {[%clk 0:00:29]} 36. Kg1 {[%clk 0:00:15]}  d4 {[%clk 0:00:22]} 37. Ng4 {[%clk 0:00:15]}  Qg5 {[%clk 0:00:20]} 38. Rd1 {[%clk 0:00:12]}  Rc1 {[%clk 0:00:16]} 39. Rd2 {[%clk 0:00:11]}  Ne3 {[%clk 0:00:12]} 40. Nxe3 {[%clk 0:00:10]}  Qxe3+ {[%clk 0:00:06]} 41. Kf1 {[%clk 0:00:10]} 1-0


[Site "https://www.chess.com"]